Workbook

Sheet 経験値曲線
B2: 係数（四次） | C2: 0.2 | D2: 係数（四次） | E2: 0.185 | F2: 係数（四次） | G2: 0.215 | H2: 係数（四次） | I2: 0.2
B3: 係数（三次） | C3: 0 | D3: 係数（三次） | E3: 0.5 | F3: 係数（三次） | G3: -0.5 | H3: 係数（三次） | I3: 0.5
B4: 係数（二次） | C4: 0 | D4: 係数（二次） | E4: 0 | F4: 係数（二次） | G4: 0 | H4: 係数（二次） | I4: 0
B5: 係数（一次） | C5: 15 | D5: 係数（一次） | E5: 15 | F5: 係数（一次） | G5: 15 | H5: 係数（一次） | I5: 15
B6: 補正値 | C6: -15 | D6: 補正値 | E6: -15 | F6: 補正値 | G6: -15 | H6: 補正値 | I6: -15
B7: JS式 | C7: ="("&C2&"*level**4)+("&C3&"*level**3)+("&C4&"*level**2)+("&C5&"*level)+("&C6&")" -> (0.2*level**4)+(0*level**3)+(0*level**2)+(15*level)+(-15) | D7: JS式 | E7: ="("&E2&"*level**4)+("&E3&"*level**3)+("&E4&"*level**2)+("&E5&"*level)+("&E6&")" -> (0.185*level**4)+(0.5*level**3)+(0*level**2)+(15*level)+(-15) | F7: JS式 | G7: ="("&G2&"*level**4)+("&G3&"*level**3)+("&G4&"*level**2)+("&G5&"*level)+("&G6&")" -> (0.215*level**4)+(-0.5*level**3)+(0*level**2)+(15*level)+(-15) | H7: JS式 | I7: ="("&I2&"*level**4)+("&I3&"*level**3)+("&I4&"*level**2)+("&I5&"*level)+("&I6&")" -> (0.2*level**4)+(0.5*level**3)+(0*level**2)+(15*level)+(-15)
B9: 標準 | C9: 差分 | D9: 追込 | E9: 差分 | F9: 早熟 | G9: 差分 | H9: 晩成 | I9: 差分
A10: レベル | B10: 差分 | C10: 累計 | D10: 差分 | E10: 累計 | F10: 差分 | G10: 累計 | H10: 差分 | I10: 累計
A11: 1 | B11: 0 | C11: 0 | D11: 0 | E11: 0 | F11: 0 | G11: 0 | H11: 0 | I11: 0
A12: 2 | B12: =C12-C11 -> 18.2 | C12: =C$2*$A12^4 + C$3*$A12^3 + C$4*$A12^2 + C$5*$A12 + C$6 -> 18.2 | D12: =E12-E11 -> 21.96 | E12: =E$2*$A12^4 + E$3*$A12^3 + E$4*$A12^2 + E$5*$A12 + E$6 -> 21.96 | F12: =G12-G11 -> 14.44 | G12: =G$2*$A12^4 + G$3*$A12^3 + G$4*$A12^2 + G$5*$A12 + G$6 -> 14.44 | H12: =I12-I11 -> 22.2 | I12: =I$2*$A12^4 + I$3*$A12^3 + I$4*$A12^2 + I$5*$A12 + I$6 -> 22.2
A13: 3 | B13: =C13-C12 -> 28 | C13: =C$2*$A13^4 + C$3*$A13^3 + C$4*$A13^2 + C$5*$A13 + C$6 -> 46.2 | D13: =E13-E12 -> 36.525 | E13: =E$2*$A13^4 + E$3*$A13^3 + E$4*$A13^2 + E$5*$A13 + E$6 -> 58.485 | F13: =G13-G12 -> 19.475 | G13: =G$2*$A13^4 + G$3*$A13^3 + G$4*$A13^2 + G$5*$A13 + G$6 -> 33.915 | H13: =I13-I12 -> 37.5 | I13: =I$2*$A13^4 + I$3*$A13^3 + I$4*$A13^2 + I$5*$A13 + I$6 -> 59.7
A14: 4 | B14: =C14-C13 -> 50 | C14: =C$2*$A14^4 + C$3*$A14^3 + C$4*$A14^2 + C$5*$A14 + C$6 -> 96.2 | D14: =E14-E13 -> 65.875 | E14: =E$2*$A14^4 + E$3*$A14^3 + E$4*$A14^2 + E$5*$A14 + E$6 -> 124.36 | F14: =G14-G13 -> 34.125 | G14: =G$2*$A14^4 + G$3*$A14^3 + G$4*$A14^2 + G$5*$A14 + G$6 -> 68.04 | H14: =I14-I13 -> 68.5 | I14: =I$2*$A14^4 + I$3*$A14^3 + I$4*$A14^2 + I$5*$A14 + I$6 -> 128.2
A15: 5 | B15: =C15-C14 -> 88.8 | C15: =C$2*$A15^4 + C$3*$A15^3 + C$4*$A15^2 + C$5*$A15 + C$6 -> 185 | D15: =E15-E14 -> 113.765 | E15: =E$2*$A15^4 + E$3*$A15^3 + E$4*$A15^2 + E$5*$A15 + E$6 -> 238.125 | F15: =G15-G14 -> 63.835 | G15: =G$2*$A15^4 + G$3*$A15^3 + G$4*$A15^2 + G$5*$A15 + G$6 -> 131.875 | H15: =I15-I14 -> 119.3 | I15: =I$2*$A15^4 + I$3*$A15^3 + I$4*$A15^2 + I$5*$A15 + I$6 -> 247.5
A16: 6 | B16: =C16-C15 -> 149.2 | C16: =C$2*$A16^4 + C$3*$A16^3 + C$4*$A16^2 + C$5*$A16 + C$6 -> 334.2 | D16: =E16-E15 -> 184.635 | E16: =E$2*$A16^4 + E$3*$A16^3 + E$4*$A16^2 + E$5*$A16 + E$6 -> 422.76 | F16: =G16-G15 -> 113.765 | G16: =G$2*$A16^4 + G$3*$A16^3 + G$4*$A16^2 + G$5*$A16 + G$6 -> 245.64 | H16: =I16-I15 -> 194.7 | I16: =I$2*$A16^4 + I$3*$A16^3 + I$4*$A16^2 + I$5*$A16 + I$6 -> 442.2
A17: 7 | B17: =C17-C16 -> 236 | C17: =C$2*$A17^4 + C$3*$A17^3 + C$4*$A17^2 + C$5*$A17 + C$6 -> 570.2 | D17: =E17-E16 -> 282.925 | E17: =E$2*$A17^4 + E$3*$A17^3 + E$4*$A17^2 + E$5*$A17 + E$6 -> 705.685 | F17: =G17-G16 -> 189.075 | G17: =G$2*$A17^4 + G$3*$A17^3 + G$4*$A17^2 + G$5*$A17 + G$6 -> 434.715 | H17: =I17-I16 -> 299.5 | I17: =I$2*$A17^4 + I$3*$A17^3 + I$4*$A17^2 + I$5*$A17 + I$6 -> 741.7
A18: 8 | B18: =C18-C17 -> 354 | C18: =C$2*$A18^4 + C$3*$A18^3 + C$4*$A18^2 + C$5*$A18 + C$6 -> 924.2 | D18: =E18-E17 -> 413.075 | E18: =E$2*$A18^4 + E$3*$A18^3 + E$4*$A18^2 + E$5*$A18 + E$6 -> 1118.76 | F18: =G18-G17 -> 294.925 | G18: =G$2*$A18^4 + G$3*$A18^3 + G$4*$A18^2 + G$5*$A18 + G$6 -> 729.64 | H18: =I18-I17 -> 438.5 | I18: =I$2*$A18^4 + I$3*$A18^3 + I$4*$A18^2 + I$5*$A18 + I$6 -> 1180.2
A19: 9 | B19: =C19-C18 -> 508 | C19: =C$2*$A19^4 + C$3*$A19^3 + C$4*$A19^2 + C$5*$A19 + C$6 -> 1432.2 | D19: =E19-E18 -> 579.525 | E19: =E$2*$A19^4 + E$3*$A19^3 + E$4*$A19^2 + E$5*$A19 + E$6 -> 1698.285 | F19: =G19-G18 -> 436.475 | G19: =G$2*$A19^4 + G$3*$A19^3 + G$4*$A19^2 + G$5*$A19 + G$6 -> 1166.115 | H19: =I19-I18 -> 616.5 | I19: =I$2*$A19^4 + I$3*$A19^3 + I$4*$A19^2 + I$5*$A19 + I$6 -> 1796.7
A20: 10 | B20: =C20-C19 -> 702.8 | C20: =C$2*$A20^4 + C$3*$A20^3 + C$4*$A20^2 + C$5*$A20 + C$6 -> 2135 | D20: =E20-E19 -> 786.715 | E20: =E$2*$A20^4 + E$3*$A20^3 + E$4*$A20^2 + E$5*$A20 + E$6 -> 2485 | F20: =G20-G19 -> 618.885 | G20: =G$2*$A20^4 + G$3*$A20^3 + G$4*$A20^2 + G$5*$A20 + G$6 -> 1785 | H20: =I20-I19 -> 838.3 | I20: =I$2*$A20^4 + I$3*$A20^3 + I$4*$A20^2 + I$5*$A20 + I$6 -> 2635
A21: 11 | B21: =C21-C20 -> 943.2 | C21: =C$2*$A21^4 + C$3*$A21^3 + C$4*$A21^2 + C$5*$A21 + C$6 -> 3078.2 | D21: =E21-E20 -> 1039.085 | E21: =E$2*$A21^4 + E$3*$A21^3 + E$4*$A21^2 + E$5*$A21 + E$6 -> 3524.085 | F21: =G21-G20 -> 847.315 | G21: =G$2*$A21^4 + G$3*$A21^3 + G$4*$A21^2 + G$5*$A21 + G$6 -> 2632.315 | H21: =I21-I20 -> 1108.7 | I21: =I$2*$A21^4 + I$3*$A21^3 + I$4*$A21^2 + I$5*$A21 + I$6 -> 3743.7
A22: 12 | B22: =C22-C21 -> 1234 | C22: =C$2*$A22^4 + C$3*$A22^3 + C$4*$A22^2 + C$5*$A22 + C$6 -> 4312.2 | D22: =E22-E21 -> 1341.075 | E22: =E$2*$A22^4 + E$3*$A22^3 + E$4*$A22^2 + E$5*$A22 + E$6 -> 4865.16 | F22: =G22-G21 -> 1126.925 | G22: =G$2*$A22^4 + G$3*$A22^3 + G$4*$A22^2 + G$5*$A22 + G$6 -> 3759.24 | H22: =I22-I21 -> 1432.5 | I22: =I$2*$A22^4 + I$3*$A22^3 + I$4*$A22^2 + I$5*$A22 + I$6 -> 5176.2
A23: 13 | B23: =C23-C22 -> 1580 | C23: =C$2*$A23^4 + C$3*$A23^3 + C$4*$A23^2 + C$5*$A23 + C$6 -> 5892.2 | D23: =E23-E22 -> 1697.125 | E23: =E$2*$A23^4 + E$3*$A23^3 + E$4*$A23^2 + E$5*$A23 + E$6 -> 6562.285 | F23: =G23-G22 -> 1462.875 | G23: =G$2*$A23^4 + G$3*$A23^3 + G$4*$A23^2 + G$5*$A23 + G$6 -> 5222.115 | H23: =I23-I22 -> 1814.5 | I23: =I$2*$A23^4 + I$3*$A23^3 + I$4*$A23^2 + I$5*$A23 + I$6 -> 6990.7
A24: 14 | B24: =C24-C23 -> 1986 | C24: =C$2*$A24^4 + C$3*$A24^3 + C$4*$A24^2 + C$5*$A24 + C$6 -> 7878.2 | D24: =E24-E23 -> 2111.675 | E24: =E$2*$A24^4 + E$3*$A24^3 + E$4*$A24^2 + E$5*$A24 + E$6 -> 8673.96 | F24: =G24-G23 -> 1860.325 | G24: =G$2*$A24^4 + G$3*$A24^3 + G$4*$A24^2 + G$5*$A24 + G$6 -> 7082.44 | H24: =I24-I23 -> 2259.5 | I24: =I$2*$A24^4 + I$3*$A24^3 + I$4*$A24^2 + I$5*$A24 + I$6 -> 9250.2
A25: 15 | B25: =C25-C24 -> 2456.8 | C25: =C$2*$A25^4 + C$3*$A25^3 + C$4*$A25^2 + C$5*$A25 + C$6 -> 10335 | D25: =E25-E24 -> 2589.165 | E25: =E$2*$A25^4 + E$3*$A25^3 + E$4*$A25^2 + E$5*$A25 + E$6 -> 11263.125 | F25: =G25-G24 -> 2324.435 | G25: =G$2*$A25^4 + G$3*$A25^3 + G$4*$A25^2 + G$5*$A25 + G$6 -> 9406.875 | H25: =I25-I24 -> 2772.3 | I25: =I$2*$A25^4 + I$3*$A25^3 + I$4*$A25^2 + I$5*$A25 + I$6 -> 12022.5
A26: 16 | B26: =C26-C25 -> 2997.2 | C26: =C$2*$A26^4 + C$3*$A26^3 + C$4*$A26^2 + C$5*$A26 + C$6 -> 13332.2 | D26: =E26-E25 -> 3134.035 | E26: =E$2*$A26^4 + E$3*$A26^3 + E$4*$A26^2 + E$5*$A26 + E$6 -> 14397.16 | F26: =G26-G25 -> 2860.365 | G26: =G$2*$A26^4 + G$3*$A26^3 + G$4*$A26^2 + G$5*$A26 + G$6 -> 12267.24 | H26: =I26-I25 -> 3357.7 | I26: =I$2*$A26^4 + I$3*$A26^3 + I$4*$A26^2 + I$5*$A26 + I$6 -> 15380.2
A27: 17 | B27: =C27-C26 -> 3612 | C27: =C$2*$A27^4 + C$3*$A27^3 + C$4*$A27^2 + C$5*$A27 + C$6 -> 16944.2 | D27: =E27-E26 -> 3750.725 | E27: =E$2*$A27^4 + E$3*$A27^3 + E$4*$A27^2 + E$5*$A27 + E$6 -> 18147.885 | F27: =G27-G26 -> 3473.275 | G27: =G$2*$A27^4 + G$3*$A27^3 + G$4*$A27^2 + G$5*$A27 + G$6 -> 15740.515 | H27: =I27-I26 -> 4020.5 | I27: =I$2*$A27^4 + I$3*$A27^3 + I$4*$A27^2 + I$5*$A27 + I$6 -> 19400.7
A28: 18 | B28: =C28-C27 -> 4306 | C28: =C$2*$A28^4 + C$3*$A28^3 + C$4*$A28^2 + C$5*$A28 + C$6 -> 21250.2 | D28: =E28-E27 -> 4443.675 | E28: =E$2*$A28^4 + E$3*$A28^3 + E$4*$A28^2 + E$5*$A28 + E$6 -> 22591.56 | F28: =G28-G27 -> 4168.325 | G28: =G$2*$A28^4 + G$3*$A28^3 + G$4*$A28^2 + G$5*$A28 + G$6 -> 19908.84 | H28: =I28-I27 -> 4765.5 | I28: =I$2*$A28^4 + I$3*$A28^3 + I$4*$A28^2 + I$5*$A28 + I$6 -> 24166.2
A29: 19 | B29: =C29-C28 -> 5084 | C29: =C$2*$A29^4 + C$3*$A29^3 + C$4*$A29^2 + C$5*$A29 + C$6 -> 26334.2 | D29: =E29-E28 -> 5217.325 | E29: =E$2*$A29^4 + E$3*$A29^3 + E$4*$A29^2 + E$5*$A29 + E$6 -> 27808.885 | F29: =G29-G28 -> 4950.675 | G29: =G$2*$A29^4 + G$3*$A29^3 + G$4*$A29^2 + G$5*$A29 + G$6 -> 24859.515 | H29: =I29-I28 -> 5597.5 | I29: =I$2*$A29^4 + I$3*$A29^3 + I$4*$A29^2 + I$5*$A29 + I$6 -> 29763.7
A30: 20 | B30: =C30-C29 -> 5950.8 | C30: =C$2*$A30^4 + C$3*$A30^3 + C$4*$A30^2 + C$5*$A30 + C$6 -> 32285 | D30: =E30-E29 -> 6076.115 | E30: =E$2*$A30^4 + E$3*$A30^3 + E$4*$A30^2 + E$5*$A30 + E$6 -> 33885 | F30: =G30-G29 -> 5825.485 | G30: =G$2*$A30^4 + G$3*$A30^3 + G$4*$A30^2 + G$5*$A30 + G$6 -> 30685 | H30: =I30-I29 -> 6521.3 | I30: =I$2*$A30^4 + I$3*$A30^3 + I$4*$A30^2 + I$5*$A30 + I$6 -> 36285
A31: 21 | B31: =C31-C30 -> 6911.2 | C31: =C$2*$A31^4 + C$3*$A31^3 + C$4*$A31^2 + C$5*$A31 + C$6 -> 39196.2 | D31: =E31-E30 -> 7024.485 | E31: =E$2*$A31^4 + E$3*$A31^3 + E$4*$A31^2 + E$5*$A31 + E$6 -> 40909.485 | F31: =G31-G30 -> 6797.915 | G31: =G$2*$A31^4 + G$3*$A31^3 + G$4*$A31^2 + G$5*$A31 + G$6 -> 37482.915 | H31: =I31-I30 -> 7541.7 | I31: =I$2*$A31^4 + I$3*$A31^3 + I$4*$A31^2 + I$5*$A31 + I$6 -> 43826.7
A32: 22 | B32: =C32-C31 -> 7970 | C32: =C$2*$A32^4 + C$3*$A32^3 + C$4*$A32^2 + C$5*$A32 + C$6 -> 47166.2 | D32: =E32-E31 -> 8066.875 | E32: =E$2*$A32^4 + E$3*$A32^3 + E$4*$A32^2 + E$5*$A32 + E$6 -> 48976.36 | F32: =G32-G31 -> 7873.125 | G32: =G$2*$A32^4 + G$3*$A32^3 + G$4*$A32^2 + G$5*$A32 + G$6 -> 45356.04 | H32: =I32-I31 -> 8663.5 | I32: =I$2*$A32^4 + I$3*$A32^3 + I$4*$A32^2 + I$5*$A32 + I$6 -> 52490.2
A33: 23 | B33: =C33-C32 -> 9132 | C33: =C$2*$A33^4 + C$3*$A33^3 + C$4*$A33^2 + C$5*$A33 + C$6 -> 56298.2 | D33: =E33-E32 -> 9207.725 | E33: =E$2*$A33^4 + E$3*$A33^3 + E$4*$A33^2 + E$5*$A33 + E$6 -> 58184.085 | F33: =G33-G32 -> 9056.275 | G33: =G$2*$A33^4 + G$3*$A33^3 + G$4*$A33^2 + G$5*$A33 + G$6 -> 54412.315 | H33: =I33-I32 -> 9891.5 | I33: =I$2*$A33^4 + I$3*$A33^3 + I$4*$A33^2 + I$5*$A33 + I$6 -> 62381.7
A34: 24 | B34: =C34-C33 -> 10402 | C34: =C$2*$A34^4 + C$3*$A34^3 + C$4*$A34^2 + C$5*$A34 + C$6 -> 66700.2 | D34: =E34-E33 -> 10451.475 | E34: =E$2*$A34^4 + E$3*$A34^3 + E$4*$A34^2 + E$5*$A34 + E$6 -> 68635.56 | F34: =G34-G33 -> 10352.525 | G34: =G$2*$A34^4 + G$3*$A34^3 + G$4*$A34^2 + G$5*$A34 + G$6 -> 64764.84 | H34: =I34-I33 -> 11230.5 | I34: =I$2*$A34^4 + I$3*$A34^3 + I$4*$A34^2 + I$5*$A34 + I$6 -> 73612.2
A35: 25 | B35: =C35-C34 -> 11784.8 | C35: =C$2*$A35^4 + C$3*$A35^3 + C$4*$A35^2 + C$5*$A35 + C$6 -> 78485 | D35: =E35-E34 -> 11802.565 | E35: =E$2*$A35^4 + E$3*$A35^3 + E$4*$A35^2 + E$5*$A35 + E$6 -> 80438.125 | F35: =G35-G34 -> 11767.035 | G35: =G$2*$A35^4 + G$3*$A35^3 + G$4*$A35^2 + G$5*$A35 + G$6 -> 76531.875 | H35: =I35-I34 -> 12685.3 | I35: =I$2*$A35^4 + I$3*$A35^3 + I$4*$A35^2 + I$5*$A35 + I$6 -> 86297.5
A36: 26 | B36: =C36-C35 -> 13285.2 | C36: =C$2*$A36^4 + C$3*$A36^3 + C$4*$A36^2 + C$5*$A36 + C$6 -> 91770.2 | D36: =E36-E35 -> 13265.435 | E36: =E$2*$A36^4 + E$3*$A36^3 + E$4*$A36^2 + E$5*$A36 + E$6 -> 93703.56 | F36: =G36-G35 -> 13304.965 | G36: =G$2*$A36^4 + G$3*$A36^3 + G$4*$A36^2 + G$5*$A36 + G$6 -> 89836.84 | H36: =I36-I35 -> 14260.7 | I36: =I$2*$A36^4 + I$3*$A36^3 + I$4*$A36^2 + I$5*$A36 + I$6 -> 100558.2
A37: 27 | B37: =C37-C36 -> 14908 | C37: =C$2*$A37^4 + C$3*$A37^3 + C$4*$A37^2 + C$5*$A37 + C$6 -> 106678.2 | D37: =E37-E36 -> 14844.525 | E37: =E$2*$A37^4 + E$3*$A37^3 + E$4*$A37^2 + E$5*$A37 + E$6 -> 108548.085 | F37: =G37-G36 -> 14971.475 | G37: =G$2*$A37^4 + G$3*$A37^3 + G$4*$A37^2 + G$5*$A37 + G$6 -> 104808.315 | H37: =I37-I36 -> 15961.5 | I37: =I$2*$A37^4 + I$3*$A37^3 + I$4*$A37^2 + I$5*$A37 + I$6 -> 116519.7
A38: 28 | B38: =C38-C37 -> 16658 | C38: =C$2*$A38^4 + C$3*$A38^3 + C$4*$A38^2 + C$5*$A38 + C$6 -> 123336.2 | D38: =E38-E37 -> 16544.275 | E38: =E$2*$A38^4 + E$3*$A38^3 + E$4*$A38^2 + E$5*$A38 + E$6 -> 125092.36 | F38: =G38-G37 -> 16771.725 | G38: =G$2*$A38^4 + G$3*$A38^3 + G$4*$A38^2 + G$5*$A38 + G$6 -> 121580.04 | H38: =I38-I37 -> 17792.5 | I38: =I$2*$A38^4 + I$3*$A38^3 + I$4*$A38^2 + I$5*$A38 + I$6 -> 134312.2
A39: 29 | B39: =C39-C38 -> 18540 | C39: =C$2*$A39^4 + C$3*$A39^3 + C$4*$A39^2 + C$5*$A39 + C$6 -> 141876.2 | D39: =E39-E38 -> 18369.125 | E39: =E$2*$A39^4 + E$3*$A39^3 + E$4*$A39^2 + E$5*$A39 + E$6 -> 143461.485 | F39: =G39-G38 -> 18710.875 | G39: =G$2*$A39^4 + G$3*$A39^3 + G$4*$A39^2 + G$5*$A39 + G$6 -> 140290.915 | H39: =I39-I38 -> 19758.5 | I39: =I$2*$A39^4 + I$3*$A39^3 + I$4*$A39^2 + I$5*$A39 + I$6 -> 154070.7
A40: 30 | B40: =C40-C39 -> 20558.8 | C40: =C$2*$A40^4 + C$3*$A40^3 + C$4*$A40^2 + C$5*$A40 + C$6 -> 162435 | D40: =E40-E39 -> 20323.515 | E40: =E$2*$A40^4 + E$3*$A40^3 + E$4*$A40^2 + E$5*$A40 + E$6 -> 163785 | F40: =G40-G39 -> 20794.085 | G40: =G$2*$A40^4 + G$3*$A40^3 + G$4*$A40^2 + G$5*$A40 + G$6 -> 161085 | H40: =I40-I39 -> 21864.3 | I40: =I$2*$A40^4 + I$3*$A40^3 + I$4*$A40^2 + I$5*$A40 + I$6 -> 175935
A41: 31 | B41: =C41-C40 -> 22719.2 | C41: =C$2*$A41^4 + C$3*$A41^3 + C$4*$A41^2 + C$5*$A41 + C$6 -> 185154.2 | D41: =E41-E40 -> 22411.885 | E41: =E$2*$A41^4 + E$3*$A41^3 + E$4*$A41^2 + E$5*$A41 + E$6 -> 186196.885 | F41: =G41-G40 -> 23026.515 | G41: =G$2*$A41^4 + G$3*$A41^3 + G$4*$A41^2 + G$5*$A41 + G$6 -> 184111.515 | H41: =I41-I40 -> 24114.7 | I41: =I$2*$A41^4 + I$3*$A41^3 + I$4*$A41^2 + I$5*$A41 + I$6 -> 200049.7
A42: 32 | B42: =C42-C41 -> 25026 | C42: =C$2*$A42^4 + C$3*$A42^3 + C$4*$A42^2 + C$5*$A42 + C$6 -> 210180.2 | D42: =E42-E41 -> 24638.675 | E42: =E$2*$A42^4 + E$3*$A42^3 + E$4*$A42^2 + E$5*$A42 + E$6 -> 210835.56 | F42: =G42-G41 -> 25413.325 | G42: =G$2*$A42^4 + G$3*$A42^3 + G$4*$A42^2 + G$5*$A42 + G$6 -> 209524.84 | H42: =I42-I41 -> 26514.5 | I42: =I$2*$A42^4 + I$3*$A42^3 + I$4*$A42^2 + I$5*$A42 + I$6 -> 226564.2
A43: 33 | B43: =C43-C42 -> 27484 | C43: =C$2*$A43^4 + C$3*$A43^3 + C$4*$A43^2 + C$5*$A43 + C$6 -> 237664.2 | D43: =E43-E42 -> 27008.325 | E43: =E$2*$A43^4 + E$3*$A43^3 + E$4*$A43^2 + E$5*$A43 + E$6 -> 237843.885 | F43: =G43-G42 -> 27959.675 | G43: =G$2*$A43^4 + G$3*$A43^3 + G$4*$A43^2 + G$5*$A43 + G$6 -> 237484.515 | H43: =I43-I42 -> 29068.5 | I43: =I$2*$A43^4 + I$3*$A43^3 + I$4*$A43^2 + I$5*$A43 + I$6 -> 255632.7
A44: 34 | B44: =C44-C43 -> 30098 | C44: =C$2*$A44^4 + C$3*$A44^3 + C$4*$A44^2 + C$5*$A44 + C$6 -> 267762.2 | D44: =E44-E43 -> 29525.275 | E44: =E$2*$A44^4 + E$3*$A44^3 + E$4*$A44^2 + E$5*$A44 + E$6 -> 267369.16 | F44: =G44-G43 -> 30670.725 | G44: =G$2*$A44^4 + G$3*$A44^3 + G$4*$A44^2 + G$5*$A44 + G$6 -> 268155.24 | H44: =I44-I43 -> 31781.5 | I44: =I$2*$A44^4 + I$3*$A44^3 + I$4*$A44^2 + I$5*$A44 + I$6 -> 287414.2
A45: 35 | B45: =C45-C44 -> 32872.8 | C45: =C$2*$A45^4 + C$3*$A45^3 + C$4*$A45^2 + C$5*$A45 + C$6 -> 300635 | D45: =E45-E44 -> 32193.965 | E45: =E$2*$A45^4 + E$3*$A45^3 + E$4*$A45^2 + E$5*$A45 + E$6 -> 299563.125 | F45: =G45-G44 -> 33551.635 | G45: =G$2*$A45^4 + G$3*$A45^3 + G$4*$A45^2 + G$5*$A45 + G$6 -> 301706.875 | H45: =I45-I44 -> 34658.3 | I45: =I$2*$A45^4 + I$3*$A45^3 + I$4*$A45^2 + I$5*$A45 + I$6 -> 322072.5
A46: 36 | B46: =C46-C45 -> 35813.2 | C46: =C$2*$A46^4 + C$3*$A46^3 + C$4*$A46^2 + C$5*$A46 + C$6 -> 336448.2 | D46: =E46-E45 -> 35018.835 | E46: =E$2*$A46^4 + E$3*$A46^3 + E$4*$A46^2 + E$5*$A46 + E$6 -> 334581.96 | F46: =G46-G45 -> 36607.565 | G46: =G$2*$A46^4 + G$3*$A46^3 + G$4*$A46^2 + G$5*$A46 + G$6 -> 338314.44 | H46: =I46-I45 -> 37703.7 | I46: =I$2*$A46^4 + I$3*$A46^3 + I$4*$A46^2 + I$5*$A46 + I$6 -> 359776.2
A47: 37 | B47: =C47-C46 -> 38924 | C47: =C$2*$A47^4 + C$3*$A47^3 + C$4*$A47^2 + C$5*$A47 + C$6 -> 375372.2 | D47: =E47-E46 -> 38004.325 | E47: =E$2*$A47^4 + E$3*$A47^3 + E$4*$A47^2 + E$5*$A47 + E$6 -> 372586.285 | F47: =G47-G46 -> 39843.675 | G47: =G$2*$A47^4 + G$3*$A47^3 + G$4*$A47^2 + G$5*$A47 + G$6 -> 378158.115 | H47: =I47-I46 -> 40922.5 | I47: =I$2*$A47^4 + I$3*$A47^3 + I$4*$A47^2 + I$5*$A47 + I$6 -> 400698.7
A48: 38 | B48: =C48-C47 -> 42210 | C48: =C$2*$A48^4 + C$3*$A48^3 + C$4*$A48^2 + C$5*$A48 + C$6 -> 417582.2 | D48: =E48-E47 -> 41154.875 | E48: =E$2*$A48^4 + E$3*$A48^3 + E$4*$A48^2 + E$5*$A48 + E$6 -> 413741.16 | F48: =G48-G47 -> 43265.125 | G48: =G$2*$A48^4 + G$3*$A48^3 + G$4*$A48^2 + G$5*$A48 + G$6 -> 421423.24 | H48: =I48-I47 -> 44319.5 | I48: =I$2*$A48^4 + I$3*$A48^3 + I$4*$A48^2 + I$5*$A48 + I$6 -> 445018.2
A49: 39 | B49: =C49-C48 -> 45676 | C49: =C$2*$A49^4 + C$3*$A49^3 + C$4*$A49^2 + C$5*$A49 + C$6 -> 463258.2 | D49: =E49-E48 -> 44474.925 | E49: =E$2*$A49^4 + E$3*$A49^3 + E$4*$A49^2 + E$5*$A49 + E$6 -> 458216.085 | F49: =G49-G48 -> 46877.075 | G49: =G$2*$A49^4 + G$3*$A49^3 + G$4*$A49^2 + G$5*$A49 + G$6 -> 468300.315 | H49: =I49-I48 -> 47899.5 | I49: =I$2*$A49^4 + I$3*$A49^3 + I$4*$A49^2 + I$5*$A49 + I$6 -> 492917.7
A50: 40 | B50: =C50-C49 -> 49326.8 | C50: =C$2*$A50^4 + C$3*$A50^3 + C$4*$A50^2 + C$5*$A50 + C$6 -> 512585 | D50: =E50-E49 -> 47968.915 | E50: =E$2*$A50^4 + E$3*$A50^3 + E$4*$A50^2 + E$5*$A50 + E$6 -> 506185 | F50: =G50-G49 -> 50684.685 | G50: =G$2*$A50^4 + G$3*$A50^3 + G$4*$A50^2 + G$5*$A50 + G$6 -> 518985 | H50: =I50-I49 -> 51667.3 | I50: =I$2*$A50^4 + I$3*$A50^3 + I$4*$A50^2 + I$5*$A50 + I$6 -> 544585
A51: 41 | B51: =C51-C50 -> 53167.2 | C51: =C$2*$A51^4 + C$3*$A51^3 + C$4*$A51^2 + C$5*$A51 + C$6 -> 565752.2 | D51: =E51-E50 -> 51641.285 | E51: =E$2*$A51^4 + E$3*$A51^3 + E$4*$A51^2 + E$5*$A51 + E$6 -> 557826.285 | F51: =G51-G50 -> 54693.115 | G51: =G$2*$A51^4 + G$3*$A51^3 + G$4*$A51^2 + G$5*$A51 + G$6 -> 573678.115 | H51: =I51-I50 -> 55627.7 | I51: =I$2*$A51^4 + I$3*$A51^3 + I$4*$A51^2 + I$5*$A51 + I$6 -> 600212.7
A52: 42 | B52: =C52-C51 -> 57202 | C52: =C$2*$A52^4 + C$3*$A52^3 + C$4*$A52^2 + C$5*$A52 + C$6 -> 622954.2 | D52: =E52-E51 -> 55496.475 | E52: =E$2*$A52^4 + E$3*$A52^3 + E$4*$A52^2 + E$5*$A52 + E$6 -> 613322.76 | F52: =G52-G51 -> 58907.525 | G52: =G$2*$A52^4 + G$3*$A52^3 + G$4*$A52^2 + G$5*$A52 + G$6 -> 632585.64 | H52: =I52-I51 -> 59785.5 | I52: =I$2*$A52^4 + I$3*$A52^3 + I$4*$A52^2 + I$5*$A52 + I$6 -> 659998.2
A53: 43 | B53: =C53-C52 -> 61436 | C53: =C$2*$A53^4 + C$3*$A53^3 + C$4*$A53^2 + C$5*$A53 + C$6 -> 684390.2 | D53: =E53-E52 -> 59538.925 | E53: =E$2*$A53^4 + E$3*$A53^3 + E$4*$A53^2 + E$5*$A53 + E$6 -> 672861.685 | F53: =G53-G52 -> 63333.075 | G53: =G$2*$A53^4 + G$3*$A53^3 + G$4*$A53^2 + G$5*$A53 + G$6 -> 695918.715 | H53: =I53-I52 -> 64145.5 | I53: =I$2*$A53^4 + I$3*$A53^3 + I$4*$A53^2 + I$5*$A53 + I$6 -> 724143.7
A54: 44 | B54: =C54-C53 -> 65874 | C54: =C$2*$A54^4 + C$3*$A54^3 + C$4*$A54^2 + C$5*$A54 + C$6 -> 750264.2 | D54: =E54-E53 -> 63773.075 | E54: =E$2*$A54^4 + E$3*$A54^3 + E$4*$A54^2 + E$5*$A54 + E$6 -> 736634.76 | F54: =G54-G53 -> 67974.925 | G54: =G$2*$A54^4 + G$3*$A54^3 + G$4*$A54^2 + G$5*$A54 + G$6 -> 763893.64 | H54: =I54-I53 -> 68712.5 | I54: =I$2*$A54^4 + I$3*$A54^3 + I$4*$A54^2 + I$5*$A54 + I$6 -> 792856.2
A55: 45 | B55: =C55-C54 -> 70520.8 | C55: =C$2*$A55^4 + C$3*$A55^3 + C$4*$A55^2 + C$5*$A55 + C$6 -> 820785 | D55: =E55-E54 -> 68203.365 | E55: =E$2*$A55^4 + E$3*$A55^3 + E$4*$A55^2 + E$5*$A55 + E$6 -> 804838.125 | F55: =G55-G54 -> 72838.235 | G55: =G$2*$A55^4 + G$3*$A55^3 + G$4*$A55^2 + G$5*$A55 + G$6 -> 836731.875 | H55: =I55-I54 -> 73491.3 | I55: =I$2*$A55^4 + I$3*$A55^3 + I$4*$A55^2 + I$5*$A55 + I$6 -> 866347.5
A56: 46 | B56: =C56-C55 -> 75381.2 | C56: =C$2*$A56^4 + C$3*$A56^3 + C$4*$A56^2 + C$5*$A56 + C$6 -> 896166.2 | D56: =E56-E55 -> 72834.235 | E56: =E$2*$A56^4 + E$3*$A56^3 + E$4*$A56^2 + E$5*$A56 + E$6 -> 877672.36 | F56: =G56-G55 -> 77928.165 | G56: =G$2*$A56^4 + G$3*$A56^3 + G$4*$A56^2 + G$5*$A56 + G$6 -> 914660.04 | H56: =I56-I55 -> 78486.7 | I56: =I$2*$A56^4 + I$3*$A56^3 + I$4*$A56^2 + I$5*$A56 + I$6 -> 944834.2
A57: 47 | B57: =C57-C56 -> 80460 | C57: =C$2*$A57^4 + C$3*$A57^3 + C$4*$A57^2 + C$5*$A57 + C$6 -> 976626.2 | D57: =E57-E56 -> 77670.125 | E57: =E$2*$A57^4 + E$3*$A57^3 + E$4*$A57^2 + E$5*$A57 + E$6 -> 955342.485 | F57: =G57-G56 -> 83249.875 | G57: =G$2*$A57^4 + G$3*$A57^3 + G$4*$A57^2 + G$5*$A57 + G$6 -> 997909.915 | H57: =I57-I56 -> 83703.5 | I57: =I$2*$A57^4 + I$3*$A57^3 + I$4*$A57^2 + I$5*$A57 + I$6 -> 1028537.7
A58: 48 | B58: =C58-C57 -> 85762 | C58: =C$2*$A58^4 + C$3*$A58^3 + C$4*$A58^2 + C$5*$A58 + C$6 -> 1062388.2 | D58: =E58-E57 -> 82715.475 | E58: =E$2*$A58^4 + E$3*$A58^3 + E$4*$A58^2 + E$5*$A58 + E$6 -> 1038057.96 | F58: =G58-G57 -> 88808.525 | G58: =G$2*$A58^4 + G$3*$A58^3 + G$4*$A58^2 + G$5*$A58 + G$6 -> 1086718.44 | H58: =I58-I57 -> 89146.5 | I58: =I$2*$A58^4 + I$3*$A58^3 + I$4*$A58^2 + I$5*$A58 + I$6 -> 1117684.2
A59: 49 | B59: =C59-C58 -> 91292 | C59: =C$2*$A59^4 + C$3*$A59^3 + C$4*$A59^2 + C$5*$A59 + C$6 -> 1153680.2 | D59: =E59-E58 -> 87974.725 | E59: =E$2*$A59^4 + E$3*$A59^3 + E$4*$A59^2 + E$5*$A59 + E$6 -> 1126032.685 | F59: =G59-G58 -> 94609.275 | G59: =G$2*$A59^4 + G$3*$A59^3 + G$4*$A59^2 + G$5*$A59 + G$6 -> 1181327.715 | H59: =I59-I58 -> 94820.5 | I59: =I$2*$A59^4 + I$3*$A59^3 + I$4*$A59^2 + I$5*$A59 + I$6 -> 1212504.7
A60: 50 | B60: =C60-C59 -> 97054.8 | C60: =C$2*$A60^4 + C$3*$A60^3 + C$4*$A60^2 + C$5*$A60 + C$6 -> 1250735 | D60: =E60-E59 -> 93452.315 | E60: =E$2*$A60^4 + E$3*$A60^3 + E$4*$A60^2 + E$5*$A60 + E$6 -> 1219485 | F60: =G60-G59 -> 100657.285 | G60: =G$2*$A60^4 + G$3*$A60^3 + G$4*$A60^2 + G$5*$A60 + G$6 -> 1281985 | H60: =I60-I59 -> 100730.3 | I60: =I$2*$A60^4 + I$3*$A60^3 + I$4*$A60^2 + I$5*$A60 + I$6 -> 1313235
A61: 51 | B61: =C61-C60 -> 103055.2 | C61: =C$2*$A61^4 + C$3*$A61^3 + C$4*$A61^2 + C$5*$A61 + C$6 -> 1353790.2 | D61: =E61-E60 -> 99152.685 | E61: =E$2*$A61^4 + E$3*$A61^3 + E$4*$A61^2 + E$5*$A61 + E$6 -> 1318637.685 | F61: =G61-G60 -> 106957.715 | G61: =G$2*$A61^4 + G$3*$A61^3 + G$4*$A61^2 + G$5*$A61 + G$6 -> 1388942.715 | H61: =I61-I60 -> 106880.7 | I61: =I$2*$A61^4 + I$3*$A61^3 + I$4*$A61^2 + I$5*$A61 + I$6 -> 1420115.7
A62: 52 | B62: =C62-C61 -> 109298 | C62: =C$2*$A62^4 + C$3*$A62^3 + C$4*$A62^2 + C$5*$A62 + C$6 -> 1463088.2 | D62: =E62-E61 -> 105080.275 | E62: =E$2*$A62^4 + E$3*$A62^3 + E$4*$A62^2 + E$5*$A62 + E$6 -> 1423717.96 | F62: =G62-G61 -> 113515.725 | G62: =G$2*$A62^4 + G$3*$A62^3 + G$4*$A62^2 + G$5*$A62 + G$6 -> 1502458.44 | H62: =I62-I61 -> 113276.5 | I62: =I$2*$A62^4 + I$3*$A62^3 + I$4*$A62^2 + I$5*$A62 + I$6 -> 1533392.2
A63: 53 | B63: =C63-C62 -> 115788 | C63: =C$2*$A63^4 + C$3*$A63^3 + C$4*$A63^2 + C$5*$A63 + C$6 -> 1578876.2 | D63: =E63-E62 -> 111239.525 | E63: =E$2*$A63^4 + E$3*$A63^3 + E$4*$A63^2 + E$5*$A63 + E$6 -> 1534957.485 | F63: =G63-G62 -> 120336.475 | G63: =G$2*$A63^4 + G$3*$A63^3 + G$4*$A63^2 + G$5*$A63 + G$6 -> 1622794.915 | H63: =I63-I62 -> 119922.5 | I63: =I$2*$A63^4 + I$3*$A63^3 + I$4*$A63^2 + I$5*$A63 + I$6 -> 1653314.7
A64: 54 | B64: =C64-C63 -> 122530 | C64: =C$2*$A64^4 + C$3*$A64^3 + C$4*$A64^2 + C$5*$A64 + C$6 -> 1701406.2 | D64: =E64-E63 -> 117634.875 | E64: =E$2*$A64^4 + E$3*$A64^3 + E$4*$A64^2 + E$5*$A64 + E$6 -> 1652592.36 | F64: =G64-G63 -> 127425.125 | G64: =G$2*$A64^4 + G$3*$A64^3 + G$4*$A64^2 + G$5*$A64 + G$6 -> 1750220.04 | H64: =I64-I63 -> 126823.5 | I64: =I$2*$A64^4 + I$3*$A64^3 + I$4*$A64^2 + I$5*$A64 + I$6 -> 1780138.2
A65: 55 | B65: =C65-C64 -> 129528.8 | C65: =C$2*$A65^4 + C$3*$A65^3 + C$4*$A65^2 + C$5*$A65 + C$6 -> 1830935 | D65: =E65-E64 -> 124270.765 | E65: =E$2*$A65^4 + E$3*$A65^3 + E$4*$A65^2 + E$5*$A65 + E$6 -> 1776863.125 | F65: =G65-G64 -> 134786.835 | G65: =G$2*$A65^4 + G$3*$A65^3 + G$4*$A65^2 + G$5*$A65 + G$6 -> 1885006.875 | H65: =I65-I64 -> 133984.3 | I65: =I$2*$A65^4 + I$3*$A65^3 + I$4*$A65^2 + I$5*$A65 + I$6 -> 1914122.5
A66: 56 | B66: =C66-C65 -> 136789.2 | C66: =C$2*$A66^4 + C$3*$A66^3 + C$4*$A66^2 + C$5*$A66 + C$6 -> 1967724.2 | D66: =E66-E65 -> 131151.635 | E66: =E$2*$A66^4 + E$3*$A66^3 + E$4*$A66^2 + E$5*$A66 + E$6 -> 1908014.76 | F66: =G66-G65 -> 142426.765 | G66: =G$2*$A66^4 + G$3*$A66^3 + G$4*$A66^2 + G$5*$A66 + G$6 -> 2027433.64 | H66: =I66-I65 -> 141409.7 | I66: =I$2*$A66^4 + I$3*$A66^3 + I$4*$A66^2 + I$5*$A66 + I$6 -> 2055532.2
A67: 57 | B67: =C67-C66 -> 144316 | C67: =C$2*$A67^4 + C$3*$A67^3 + C$4*$A67^2 + C$5*$A67 + C$6 -> 2112040.2 | D67: =E67-E66 -> 138281.925 | E67: =E$2*$A67^4 + E$3*$A67^3 + E$4*$A67^2 + E$5*$A67 + E$6 -> 2046296.685 | F67: =G67-G66 -> 150350.075 | G67: =G$2*$A67^4 + G$3*$A67^3 + G$4*$A67^2 + G$5*$A67 + G$6 -> 2177783.715 | H67: =I67-I66 -> 149104.5 | I67: =I$2*$A67^4 + I$3*$A67^3 + I$4*$A67^2 + I$5*$A67 + I$6 -> 2204636.7
A68: 58 | B68: =C68-C67 -> 152114 | C68: =C$2*$A68^4 + C$3*$A68^3 + C$4*$A68^2 + C$5*$A68 + C$6 -> 2264154.2 | D68: =E68-E67 -> 145666.075 | E68: =E$2*$A68^4 + E$3*$A68^3 + E$4*$A68^2 + E$5*$A68 + E$6 -> 2191962.76 | F68: =G68-G67 -> 158561.925 | G68: =G$2*$A68^4 + G$3*$A68^3 + G$4*$A68^2 + G$5*$A68 + G$6 -> 2336345.64 | H68: =I68-I67 -> 157073.5 | I68: =I$2*$A68^4 + I$3*$A68^3 + I$4*$A68^2 + I$5*$A68 + I$6 -> 2361710.2
A69: 59 | B69: =C69-C68 -> 160188 | C69: =C$2*$A69^4 + C$3*$A69^3 + C$4*$A69^2 + C$5*$A69 + C$6 -> 2424342.2 | D69: =E69-E68 -> 153308.525 | E69: =E$2*$A69^4 + E$3*$A69^3 + E$4*$A69^2 + E$5*$A69 + E$6 -> 2345271.285 | F69: =G69-G68 -> 167067.475 | G69: =G$2*$A69^4 + G$3*$A69^3 + G$4*$A69^2 + G$5*$A69 + G$6 -> 2503413.115 | H69: =I69-I68 -> 165321.5 | I69: =I$2*$A69^4 + I$3*$A69^3 + I$4*$A69^2 + I$5*$A69 + I$6 -> 2527031.7
A70: 60 | B70: =C70-C69 -> 168542.8 | C70: =C$2*$A70^4 + C$3*$A70^3 + C$4*$A70^2 + C$5*$A70 + C$6 -> 2592885 | D70: =E70-E69 -> 161213.715 | E70: =E$2*$A70^4 + E$3*$A70^3 + E$4*$A70^2 + E$5*$A70 + E$6 -> 2506485 | F70: =G70-G69 -> 175871.885 | G70: =G$2*$A70^4 + G$3*$A70^3 + G$4*$A70^2 + G$5*$A70 + G$6 -> 2679285 | H70: =I70-I69 -> 173853.3 | I70: =I$2*$A70^4 + I$3*$A70^3 + I$4*$A70^2 + I$5*$A70 + I$6 -> 2700885
A71: 61 | B71: =C71-C70 -> 177183.2 | C71: =C$2*$A71^4 + C$3*$A71^3 + C$4*$A71^2 + C$5*$A71 + C$6 -> 2770068.2 | D71: =E71-E70 -> 169386.085 | E71: =E$2*$A71^4 + E$3*$A71^3 + E$4*$A71^2 + E$5*$A71 + E$6 -> 2675871.085 | F71: =G71-G70 -> 184980.315 | G71: =G$2*$A71^4 + G$3*$A71^3 + G$4*$A71^2 + G$5*$A71 + G$6 -> 2864265.315 | H71: =I71-I70 -> 182673.7 | I71: =I$2*$A71^4 + I$3*$A71^3 + I$4*$A71^2 + I$5*$A71 + I$6 -> 2883558.7
A72: 62 | B72: =C72-C71 -> 186114 | C72: =C$2*$A72^4 + C$3*$A72^3 + C$4*$A72^2 + C$5*$A72 + C$6 -> 2956182.2 | D72: =E72-E71 -> 177830.075 | E72: =E$2*$A72^4 + E$3*$A72^3 + E$4*$A72^2 + E$5*$A72 + E$6 -> 2853701.16 | F72: =G72-G71 -> 194397.925 | G72: =G$2*$A72^4 + G$3*$A72^3 + G$4*$A72^2 + G$5*$A72 + G$6 -> 3058663.24 | H72: =I72-I71 -> 191787.5 | I72: =I$2*$A72^4 + I$3*$A72^3 + I$4*$A72^2 + I$5*$A72 + I$6 -> 3075346.2
A73: 63 | B73: =C73-C72 -> 195340 | C73: =C$2*$A73^4 + C$3*$A73^3 + C$4*$A73^2 + C$5*$A73 + C$6 -> 3151522.2 | D73: =E73-E72 -> 186550.125 | E73: =E$2*$A73^4 + E$3*$A73^3 + E$4*$A73^2 + E$5*$A73 + E$6 -> 3040251.285 | F73: =G73-G72 -> 204129.875 | G73: =G$2*$A73^4 + G$3*$A73^3 + G$4*$A73^2 + G$5*$A73 + G$6 -> 3262793.115 | H73: =I73-I72 -> 201199.5 | I73: =I$2*$A73^4 + I$3*$A73^3 + I$4*$A73^2 + I$5*$A73 + I$6 -> 3276545.7
A74: 64 | B74: =C74-C73 -> 204866 | C74: =C$2*$A74^4 + C$3*$A74^3 + C$4*$A74^2 + C$5*$A74 + C$6 -> 3356388.2 | D74: =E74-E73 -> 195550.675 | E74: =E$2*$A74^4 + E$3*$A74^3 + E$4*$A74^2 + E$5*$A74 + E$6 -> 3235801.96 | F74: =G74-G73 -> 214181.325 | G74: =G$2*$A74^4 + G$3*$A74^3 + G$4*$A74^2 + G$5*$A74 + G$6 -> 3476974.44 | H74: =I74-I73 -> 210914.5 | I74: =I$2*$A74^4 + I$3*$A74^3 + I$4*$A74^2 + I$5*$A74 + I$6 -> 3487460.2
A75: 65 | B75: =C75-C74 -> 214696.8 | C75: =C$2*$A75^4 + C$3*$A75^3 + C$4*$A75^2 + C$5*$A75 + C$6 -> 3571085 | D75: =E75-E74 -> 204836.165 | E75: =E$2*$A75^4 + E$3*$A75^3 + E$4*$A75^2 + E$5*$A75 + E$6 -> 3440638.125 | F75: =G75-G74 -> 224557.435 | G75: =G$2*$A75^4 + G$3*$A75^3 + G$4*$A75^2 + G$5*$A75 + G$6 -> 3701531.875 | H75: =I75-I74 -> 220937.3 | I75: =I$2*$A75^4 + I$3*$A75^3 + I$4*$A75^2 + I$5*$A75 + I$6 -> 3708397.5
A76: 66 | B76: =C76-C75 -> 224837.2 | C76: =C$2*$A76^4 + C$3*$A76^3 + C$4*$A76^2 + C$5*$A76 + C$6 -> 3795922.2 | D76: =E76-E75 -> 214411.035 | E76: =E$2*$A76^4 + E$3*$A76^3 + E$4*$A76^2 + E$5*$A76 + E$6 -> 3655049.16 | F76: =G76-G75 -> 235263.365 | G76: =G$2*$A76^4 + G$3*$A76^3 + G$4*$A76^2 + G$5*$A76 + G$6 -> 3936795.24 | H76: =I76-I75 -> 231272.7 | I76: =I$2*$A76^4 + I$3*$A76^3 + I$4*$A76^2 + I$5*$A76 + I$6 -> 3939670.2
A77: 67 | B77: =C77-C76 -> 235292 | C77: =C$2*$A77^4 + C$3*$A77^3 + C$4*$A77^2 + C$5*$A77 + C$6 -> 4031214.2 | D77: =E77-E76 -> 224279.725 | E77: =E$2*$A77^4 + E$3*$A77^3 + E$4*$A77^2 + E$5*$A77 + E$6 -> 3879328.885 | F77: =G77-G76 -> 246304.275 | G77: =G$2*$A77^4 + G$3*$A77^3 + G$4*$A77^2 + G$5*$A77 + G$6 -> 4183099.515 | H77: =I77-I76 -> 241925.5 | I77: =I$2*$A77^4 + I$3*$A77^3 + I$4*$A77^2 + I$5*$A77 + I$6 -> 4181595.7
A78: 68 | B78: =C78-C77 -> 246066 | C78: =C$2*$A78^4 + C$3*$A78^3 + C$4*$A78^2 + C$5*$A78 + C$6 -> 4277280.2 | D78: =E78-E77 -> 234446.675 | E78: =E$2*$A78^4 + E$3*$A78^3 + E$4*$A78^2 + E$5*$A78 + E$6 -> 4113775.56 | F78: =G78-G77 -> 257685.325 | G78: =G$2*$A78^4 + G$3*$A78^3 + G$4*$A78^2 + G$5*$A78 + G$6 -> 4440784.84 | H78: =I78-I77 -> 252900.5 | I78: =I$2*$A78^4 + I$3*$A78^3 + I$4*$A78^2 + I$5*$A78 + I$6 -> 4434496.2
A79: 69 | B79: =C79-C78 -> 257164 | C79: =C$2*$A79^4 + C$3*$A79^3 + C$4*$A79^2 + C$5*$A79 + C$6 -> 4534444.2 | D79: =E79-E78 -> 244916.325 | E79: =E$2*$A79^4 + E$3*$A79^3 + E$4*$A79^2 + E$5*$A79 + E$6 -> 4358691.885 | F79: =G79-G78 -> 269411.675 | G79: =G$2*$A79^4 + G$3*$A79^3 + G$4*$A79^2 + G$5*$A79 + G$6 -> 4710196.515 | H79: =I79-I78 -> 264202.5 | I79: =I$2*$A79^4 + I$3*$A79^3 + I$4*$A79^2 + I$5*$A79 + I$6 -> 4698698.7
A80: 70 | B80: =C80-C79 -> 268590.8 | C80: =C$2*$A80^4 + C$3*$A80^3 + C$4*$A80^2 + C$5*$A80 + C$6 -> 4803035 | D80: =E80-E79 -> 255693.115 | E80: =E$2*$A80^4 + E$3*$A80^3 + E$4*$A80^2 + E$5*$A80 + E$6 -> 4614385 | F80: =G80-G79 -> 281488.485 | G80: =G$2*$A80^4 + G$3*$A80^3 + G$4*$A80^2 + G$5*$A80 + G$6 -> 4991685 | H80: =I80-I79 -> 275836.3 | I80: =I$2*$A80^4 + I$3*$A80^3 + I$4*$A80^2 + I$5*$A80 + I$6 -> 4974535
A81: 71 | B81: =C81-C80 -> 280351.2 | C81: =C$2*$A81^4 + C$3*$A81^3 + C$4*$A81^2 + C$5*$A81 + C$6 -> 5083386.2 | D81: =E81-E80 -> 266781.485 | E81: =E$2*$A81^4 + E$3*$A81^3 + E$4*$A81^2 + E$5*$A81 + E$6 -> 4881166.485 | F81: =G81-G80 -> 293920.915 | G81: =G$2*$A81^4 + G$3*$A81^3 + G$4*$A81^2 + G$5*$A81 + G$6 -> 5285605.915 | H81: =I81-I80 -> 287806.7 | I81: =I$2*$A81^4 + I$3*$A81^3 + I$4*$A81^2 + I$5*$A81 + I$6 -> 5262341.7
A82: 72 | B82: =C82-C81 -> 292450 | C82: =C$2*$A82^4 + C$3*$A82^3 + C$4*$A82^2 + C$5*$A82 + C$6 -> 5375836.2 | D82: =E82-E81 -> 278185.875 | E82: =E$2*$A82^4 + E$3*$A82^3 + E$4*$A82^2 + E$5*$A82 + E$6 -> 5159352.36 | F82: =G82-G81 -> 306714.125 | G82: =G$2*$A82^4 + G$3*$A82^3 + G$4*$A82^2 + G$5*$A82 + G$6 -> 5592320.04 | H82: =I82-I81 -> 300118.5 | I82: =I$2*$A82^4 + I$3*$A82^3 + I$4*$A82^2 + I$5*$A82 + I$6 -> 5562460.2
A83: 73 | B83: =C83-C82 -> 304892 | C83: =C$2*$A83^4 + C$3*$A83^3 + C$4*$A83^2 + C$5*$A83 + C$6 -> 5680728.2 | D83: =E83-E82 -> 289910.725 | E83: =E$2*$A83^4 + E$3*$A83^3 + E$4*$A83^2 + E$5*$A83 + E$6 -> 5449263.085 | F83: =G83-G82 -> 319873.275 | G83: =G$2*$A83^4 + G$3*$A83^3 + G$4*$A83^2 + G$5*$A83 + G$6 -> 5912193.315 | H83: =I83-I82 -> 312776.5 | I83: =I$2*$A83^4 + I$3*$A83^3 + I$4*$A83^2 + I$5*$A83 + I$6 -> 5875236.7
A84: 74 | B84: =C84-C83 -> 317682 | C84: =C$2*$A84^4 + C$3*$A84^3 + C$4*$A84^2 + C$5*$A84 + C$6 -> 5998410.2 | D84: =E84-E83 -> 301960.475 | E84: =E$2*$A84^4 + E$3*$A84^3 + E$4*$A84^2 + E$5*$A84 + E$6 -> 5751223.56 | F84: =G84-G83 -> 333403.525 | G84: =G$2*$A84^4 + G$3*$A84^3 + G$4*$A84^2 + G$5*$A84 + G$6 -> 6245596.84 | H84: =I84-I83 -> 325785.5 | I84: =I$2*$A84^4 + I$3*$A84^3 + I$4*$A84^2 + I$5*$A84 + I$6 -> 6201022.2
A85: 75 | B85: =C85-C84 -> 330824.8 | C85: =C$2*$A85^4 + C$3*$A85^3 + C$4*$A85^2 + C$5*$A85 + C$6 -> 6329235 | D85: =E85-E84 -> 314339.565 | E85: =E$2*$A85^4 + E$3*$A85^3 + E$4*$A85^2 + E$5*$A85 + E$6 -> 6065563.125 | F85: =G85-G84 -> 347310.035 | G85: =G$2*$A85^4 + G$3*$A85^3 + G$4*$A85^2 + G$5*$A85 + G$6 -> 6592906.875 | H85: =I85-I84 -> 339150.3 | I85: =I$2*$A85^4 + I$3*$A85^3 + I$4*$A85^2 + I$5*$A85 + I$6 -> 6540172.5
A86: 76 | B86: =C86-C85 -> 344325.2 | C86: =C$2*$A86^4 + C$3*$A86^3 + C$4*$A86^2 + C$5*$A86 + C$6 -> 6673560.2 | D86: =E86-E85 -> 327052.435 | E86: =E$2*$A86^4 + E$3*$A86^3 + E$4*$A86^2 + E$5*$A86 + E$6 -> 6392615.56 | F86: =G86-G85 -> 361597.965 | G86: =G$2*$A86^4 + G$3*$A86^3 + G$4*$A86^2 + G$5*$A86 + G$6 -> 6954504.84 | H86: =I86-I85 -> 352875.7 | I86: =I$2*$A86^4 + I$3*$A86^3 + I$4*$A86^2 + I$5*$A86 + I$6 -> 6893048.2
A87: 77 | B87: =C87-C86 -> 358188 | C87: =C$2*$A87^4 + C$3*$A87^3 + C$4*$A87^2 + C$5*$A87 + C$6 -> 7031748.2 | D87: =E87-E86 -> 340103.525 | E87: =E$2*$A87^4 + E$3*$A87^3 + E$4*$A87^2 + E$5*$A87 + E$6 -> 6732719.085 | F87: =G87-G86 -> 376272.475 | G87: =G$2*$A87^4 + G$3*$A87^3 + G$4*$A87^2 + G$5*$A87 + G$6 -> 7330777.315 | H87: =I87-I86 -> 366966.5 | I87: =I$2*$A87^4 + I$3*$A87^3 + I$4*$A87^2 + I$5*$A87 + I$6 -> 7260014.7
A88: 78 | B88: =C88-C87 -> 372418 | C88: =C$2*$A88^4 + C$3*$A88^3 + C$4*$A88^2 + C$5*$A88 + C$6 -> 7404166.2 | D88: =E88-E87 -> 353497.275 | E88: =E$2*$A88^4 + E$3*$A88^3 + E$4*$A88^2 + E$5*$A88 + E$6 -> 7086216.36 | F88: =G88-G87 -> 391338.725 | G88: =G$2*$A88^4 + G$3*$A88^3 + G$4*$A88^2 + G$5*$A88 + G$6 -> 7722116.04 | H88: =I88-I87 -> 381427.5 | I88: =I$2*$A88^4 + I$3*$A88^3 + I$4*$A88^2 + I$5*$A88 + I$6 -> 7641442.2
A89: 79 | B89: =C89-C88 -> 387020 | C89: =C$2*$A89^4 + C$3*$A89^3 + C$4*$A89^2 + C$5*$A89 + C$6 -> 7791186.2 | D89: =E89-E88 -> 367238.125 | E89: =E$2*$A89^4 + E$3*$A89^3 + E$4*$A89^2 + E$5*$A89 + E$6 -> 7453454.485 | F89: =G89-G88 -> 406801.875 | G89: =G$2*$A89^4 + G$3*$A89^3 + G$4*$A89^2 + G$5*$A89 + G$6 -> 8128917.915 | H89: =I89-I88 -> 396263.5 | I89: =I$2*$A89^4 + I$3*$A89^3 + I$4*$A89^2 + I$5*$A89 + I$6 -> 8037705.7
A90: 80 | B90: =C90-C89 -> 401998.8 | C90: =C$2*$A90^4 + C$3*$A90^3 + C$4*$A90^2 + C$5*$A90 + C$6 -> 8193185 | D90: =E90-E89 -> 381330.515 | E90: =E$2*$A90^4 + E$3*$A90^3 + E$4*$A90^2 + E$5*$A90 + E$6 -> 7834785 | F90: =G90-G89 -> 422667.085 | G90: =G$2*$A90^4 + G$3*$A90^3 + G$4*$A90^2 + G$5*$A90 + G$6 -> 8551585 | H90: =I90-I89 -> 411479.3 | I90: =I$2*$A90^4 + I$3*$A90^3 + I$4*$A90^2 + I$5*$A90 + I$6 -> 8449185
A91: 81 | B91: =C91-C90 -> 417359.2 | C91: =C$2*$A91^4 + C$3*$A91^3 + C$4*$A91^2 + C$5*$A91 + C$6 -> 8610544.2 | D91: =E91-E90 -> 395778.885 | E91: =E$2*$A91^4 + E$3*$A91^3 + E$4*$A91^2 + E$5*$A91 + E$6 -> 8230563.885 | F91: =G91-G90 -> 438939.515 | G91: =G$2*$A91^4 + G$3*$A91^3 + G$4*$A91^2 + G$5*$A91 + G$6 -> 8990524.515 | H91: =I91-I90 -> 427079.7 | I91: =I$2*$A91^4 + I$3*$A91^3 + I$4*$A91^2 + I$5*$A91 + I$6 -> 8876264.7
A92: 82 | B92: =C92-C91 -> 433106 | C92: =C$2*$A92^4 + C$3*$A92^3 + C$4*$A92^2 + C$5*$A92 + C$6 -> 9043650.2 | D92: =E92-E91 -> 410587.675 | E92: =E$2*$A92^4 + E$3*$A92^3 + E$4*$A92^2 + E$5*$A92 + E$6 -> 8641151.56 | F92: =G92-G91 -> 455624.325 | G92: =G$2*$A92^4 + G$3*$A92^3 + G$4*$A92^2 + G$5*$A92 + G$6 -> 9446148.84 | H92: =I92-I91 -> 443069.5 | I92: =I$2*$A92^4 + I$3*$A92^3 + I$4*$A92^2 + I$5*$A92 + I$6 -> 9319334.2
A93: 83 | B93: =C93-C92 -> 449244 | C93: =C$2*$A93^4 + C$3*$A93^3 + C$4*$A93^2 + C$5*$A93 + C$6 -> 9492894.2 | D93: =E93-E92 -> 425761.325 | E93: =E$2*$A93^4 + E$3*$A93^3 + E$4*$A93^2 + E$5*$A93 + E$6 -> 9066912.885 | F93: =G93-G92 -> 472726.675 | G93: =G$2*$A93^4 + G$3*$A93^3 + G$4*$A93^2 + G$5*$A93 + G$6 -> 9918875.515 | H93: =I93-I92 -> 459453.5 | I93: =I$2*$A93^4 + I$3*$A93^3 + I$4*$A93^2 + I$5*$A93 + I$6 -> 9778787.7
A94: 84 | B94: =C94-C93 -> 465778 | C94: =C$2*$A94^4 + C$3*$A94^3 + C$4*$A94^2 + C$5*$A94 + C$6 -> 9958672.2 | D94: =E94-E93 -> 441304.275 | E94: =E$2*$A94^4 + E$3*$A94^3 + E$4*$A94^2 + E$5*$A94 + E$6 -> 9508217.16 | F94: =G94-G93 -> 490251.725 | G94: =G$2*$A94^4 + G$3*$A94^3 + G$4*$A94^2 + G$5*$A94 + G$6 -> 10409127.24 | H94: =I94-I93 -> 476236.5 | I94: =I$2*$A94^4 + I$3*$A94^3 + I$4*$A94^2 + I$5*$A94 + I$6 -> 10255024.2
A95: 85 | B95: =C95-C94 -> 482712.8 | C95: =C$2*$A95^4 + C$3*$A95^3 + C$4*$A95^2 + C$5*$A95 + C$6 -> 10441385 | D95: =E95-E94 -> 457220.965 | E95: =E$2*$A95^4 + E$3*$A95^3 + E$4*$A95^2 + E$5*$A95 + E$6 -> 9965438.125 | F95: =G95-G94 -> 508204.635 | G95: =G$2*$A95^4 + G$3*$A95^3 + G$4*$A95^2 + G$5*$A95 + G$6 -> 10917331.88 | H95: =I95-I94 -> 493423.3 | I95: =I$2*$A95^4 + I$3*$A95^3 + I$4*$A95^2 + I$5*$A95 + I$6 -> 10748447.5
A96: 86 | B96: =C96-C95 -> 500053.2 | C96: =C$2*$A96^4 + C$3*$A96^3 + C$4*$A96^2 + C$5*$A96 + C$6 -> 10941438.2 | D96: =E96-E95 -> 473515.835 | E96: =E$2*$A96^4 + E$3*$A96^3 + E$4*$A96^2 + E$5*$A96 + E$6 -> 10438953.96 | F96: =G96-G95 -> 526590.565 | G96: =G$2*$A96^4 + G$3*$A96^3 + G$4*$A96^2 + G$5*$A96 + G$6 -> 11443922.44 | H96: =I96-I95 -> 511018.7 | I96: =I$2*$A96^4 + I$3*$A96^3 + I$4*$A96^2 + I$5*$A96 + I$6 -> 11259466.2
A97: 87 | B97: =C97-C96 -> 517804 | C97: =C$2*$A97^4 + C$3*$A97^3 + C$4*$A97^2 + C$5*$A97 + C$6 -> 11459242.2 | D97: =E97-E96 -> 490193.325 | E97: =E$2*$A97^4 + E$3*$A97^3 + E$4*$A97^2 + E$5*$A97 + E$6 -> 10929147.29 | F97: =G97-G96 -> 545414.675 | G97: =G$2*$A97^4 + G$3*$A97^3 + G$4*$A97^2 + G$5*$A97 + G$6 -> 11989337.12 | H97: =I97-I96 -> 529027.5 | I97: =I$2*$A97^4 + I$3*$A97^3 + I$4*$A97^2 + I$5*$A97 + I$6 -> 11788493.7
A98: 88 | B98: =C98-C97 -> 535970 | C98: =C$2*$A98^4 + C$3*$A98^3 + C$4*$A98^2 + C$5*$A98 + C$6 -> 11995212.2 | D98: =E98-E97 -> 507257.875 | E98: =E$2*$A98^4 + E$3*$A98^3 + E$4*$A98^2 + E$5*$A98 + E$6 -> 11436405.16 | F98: =G98-G97 -> 564682.125 | G98: =G$2*$A98^4 + G$3*$A98^3 + G$4*$A98^2 + G$5*$A98 + G$6 -> 12554019.24 | H98: =I98-I97 -> 547454.5 | I98: =I$2*$A98^4 + I$3*$A98^3 + I$4*$A98^2 + I$5*$A98 + I$6 -> 12335948.2
A99: 89 | B99: =C99-C98 -> 554556 | C99: =C$2*$A99^4 + C$3*$A99^3 + C$4*$A99^2 + C$5*$A99 + C$6 -> 12549768.2 | D99: =E99-E98 -> 524713.925 | E99: =E$2*$A99^4 + E$3*$A99^3 + E$4*$A99^2 + E$5*$A99 + E$6 -> 11961119.09 | F99: =G99-G98 -> 584398.075 | G99: =G$2*$A99^4 + G$3*$A99^3 + G$4*$A99^2 + G$5*$A99 + G$6 -> 13138417.31 | H99: =I99-I98 -> 566304.5 | I99: =I$2*$A99^4 + I$3*$A99^3 + I$4*$A99^2 + I$5*$A99 + I$6 -> 12902252.7
A100: 90 | B100: =C100-C99 -> 573566.8 | C100: =C$2*$A100^4 + C$3*$A100^3 + C$4*$A100^2 + C$5*$A100 + C$6 -> 13123335 | D100: =E100-E99 -> 542565.915 | E100: =E$2*$A100^4 + E$3*$A100^3 + E$4*$A100^2 + E$5*$A100 + E$6 -> 12503685 | F100: =G100-G99 -> 604567.685 | G100: =G$2*$A100^4 + G$3*$A100^3 + G$4*$A100^2 + G$5*$A100 + G$6 -> 13742985 | H100: =I100-I99 -> 585582.3 | I100: =I$2*$A100^4 + I$3*$A100^3 + I$4*$A100^2 + I$5*$A100 + I$6 -> 13487835
A101: 91 | B101: =C101-C100 -> 593007.2 | C101: =C$2*$A101^4 + C$3*$A101^3 + C$4*$A101^2 + C$5*$A101 + C$6 -> 13716342.2 | D101: =E101-E100 -> 560818.285 | E101: =E$2*$A101^4 + E$3*$A101^3 + E$4*$A101^2 + E$5*$A101 + E$6 -> 13064503.29 | F101: =G101-G100 -> 625196.115 | G101: =G$2*$A101^4 + G$3*$A101^3 + G$4*$A101^2 + G$5*$A101 + G$6 -> 14368181.12 | H101: =I101-I100 -> 605292.7 | I101: =I$2*$A101^4 + I$3*$A101^3 + I$4*$A101^2 + I$5*$A101 + I$6 -> 14093127.7
A102: 92 | B102: =C102-C101 -> 612882 | C102: =C$2*$A102^4 + C$3*$A102^3 + C$4*$A102^2 + C$5*$A102 + C$6 -> 14329224.2 | D102: =E102-E101 -> 579475.475 | E102: =E$2*$A102^4 + E$3*$A102^3 + E$4*$A102^2 + E$5*$A102 + E$6 -> 13643978.76 | F102: =G102-G101 -> 646288.525 | G102: =G$2*$A102^4 + G$3*$A102^3 + G$4*$A102^2 + G$5*$A102 + G$6 -> 15014469.64 | H102: =I102-I101 -> 625440.5 | I102: =I$2*$A102^4 + I$3*$A102^3 + I$4*$A102^2 + I$5*$A102 + I$6 -> 14718568.2
A103: 93 | B103: =C103-C102 -> 633196 | C103: =C$2*$A103^4 + C$3*$A103^3 + C$4*$A103^2 + C$5*$A103 + C$6 -> 14962420.2 | D103: =E103-E102 -> 598541.925 | E103: =E$2*$A103^4 + E$3*$A103^3 + E$4*$A103^2 + E$5*$A103 + E$6 -> 14242520.69 | F103: =G103-G102 -> 667850.075 | G103: =G$2*$A103^4 + G$3*$A103^3 + G$4*$A103^2 + G$5*$A103 + G$6 -> 15682319.71 | H103: =I103-I102 -> 646030.5 | I103: =I$2*$A103^4 + I$3*$A103^3 + I$4*$A103^2 + I$5*$A103 + I$6 -> 15364598.7
A104: 94 | B104: =C104-C103 -> 653954 | C104: =C$2*$A104^4 + C$3*$A104^3 + C$4*$A104^2 + C$5*$A104 + C$6 -> 15616374.2 | D104: =E104-E103 -> 618022.075 | E104: =E$2*$A104^4 + E$3*$A104^3 + E$4*$A104^2 + E$5*$A104 + E$6 -> 14860542.76 | F104: =G104-G103 -> 689885.925 | G104: =G$2*$A104^4 + G$3*$A104^3 + G$4*$A104^2 + G$5*$A104 + G$6 -> 16372205.64 | H104: =I104-I103 -> 667067.5 | I104: =I$2*$A104^4 + I$3*$A104^3 + I$4*$A104^2 + I$5*$A104 + I$6 -> 16031666.2
A105: 95 | B105: =C105-C104 -> 675160.8 | C105: =C$2*$A105^4 + C$3*$A105^3 + C$4*$A105^2 + C$5*$A105 + C$6 -> 16291535 | D105: =E105-E104 -> 637920.365 | E105: =E$2*$A105^4 + E$3*$A105^3 + E$4*$A105^2 + E$5*$A105 + E$6 -> 15498463.12 | F105: =G105-G104 -> 712401.235 | G105: =G$2*$A105^4 + G$3*$A105^3 + G$4*$A105^2 + G$5*$A105 + G$6 -> 17084606.88 | H105: =I105-I104 -> 688556.3 | I105: =I$2*$A105^4 + I$3*$A105^3 + I$4*$A105^2 + I$5*$A105 + I$6 -> 16720222.5
A106: 96 | B106: =C106-C105 -> 696821.2 | C106: =C$2*$A106^4 + C$3*$A106^3 + C$4*$A106^2 + C$5*$A106 + C$6 -> 16988356.2 | D106: =E106-E105 -> 658241.235 | E106: =E$2*$A106^4 + E$3*$A106^3 + E$4*$A106^2 + E$5*$A106 + E$6 -> 16156704.36 | F106: =G106-G105 -> 735401.165 | G106: =G$2*$A106^4 + G$3*$A106^3 + G$4*$A106^2 + G$5*$A106 + G$6 -> 17820008.04 | H106: =I106-I105 -> 710501.7 | I106: =I$2*$A106^4 + I$3*$A106^3 + I$4*$A106^2 + I$5*$A106 + I$6 -> 17430724.2
A107: 97 | B107: =C107-C106 -> 718940 | C107: =C$2*$A107^4 + C$3*$A107^3 + C$4*$A107^2 + C$5*$A107 + C$6 -> 17707296.2 | D107: =E107-E106 -> 678989.125 | E107: =E$2*$A107^4 + E$3*$A107^3 + E$4*$A107^2 + E$5*$A107 + E$6 -> 16835693.48 | F107: =G107-G106 -> 758890.875 | G107: =G$2*$A107^4 + G$3*$A107^3 + G$4*$A107^2 + G$5*$A107 + G$6 -> 18578898.91 | H107: =I107-I106 -> 732908.5 | I107: =I$2*$A107^4 + I$3*$A107^3 + I$4*$A107^2 + I$5*$A107 + I$6 -> 18163632.7
A108: 98 | B108: =C108-C107 -> 741522 | C108: =C$2*$A108^4 + C$3*$A108^3 + C$4*$A108^2 + C$5*$A108 + C$6 -> 18448818.2 | D108: =E108-E107 -> 700168.475 | E108: =E$2*$A108^4 + E$3*$A108^3 + E$4*$A108^2 + E$5*$A108 + E$6 -> 17535861.96 | F108: =G108-G107 -> 782875.525 | G108: =G$2*$A108^4 + G$3*$A108^3 + G$4*$A108^2 + G$5*$A108 + G$6 -> 19361774.44 | H108: =I108-I107 -> 755781.5 | I108: =I$2*$A108^4 + I$3*$A108^3 + I$4*$A108^2 + I$5*$A108 + I$6 -> 18919414.2
A109: 99 | B109: =C109-C108 -> 764572 | C109: =C$2*$A109^4 + C$3*$A109^3 + C$4*$A109^2 + C$5*$A109 + C$6 -> 19213390.2 | D109: =E109-E108 -> 721783.725 | E109: =E$2*$A109^4 + E$3*$A109^3 + E$4*$A109^2 + E$5*$A109 + E$6 -> 18257645.68 | F109: =G109-G108 -> 807360.275 | G109: =G$2*$A109^4 + G$3*$A109^3 + G$4*$A109^2 + G$5*$A109 + G$6 -> 20169134.71 | H109: =I109-I108 -> 779125.5 | I109: =I$2*$A109^4 + I$3*$A109^3 + I$4*$A109^2 + I$5*$A109 + I$6 -> 19698539.7
